fUST/lending_fUST_20260628
["ID","MTS","AMOUNT","RATE_DAILY","PERIOD"]
[426554806,1782589836000,-151.0,0.000403,2]
[426554807,1782589836000,-151.0,0.000403,2]
[426554808,1782589836000,-151.0,0.000403,2]
[426554819,1782589836000,-222.549862,0.000403,120]
[426554817,1782589836000,-151.0,0.000403,30]
[426554818,1782589836000,-312.210232,0.000403,120]
[426554816,1782589836000,-287.490537,0.000403,120]
[426554815,1782589836000,-151.0,0.000403,30]
[426554820,1782589836000,-312.210232,0.000403,120]
[426554813,1782589836000,-287.49053,0.000403,120]
[426554812,1782589836000,-287.49053,0.000403,120]
[426554811,1782589836000,-295.646,0.000403,2]
[426554810,1782589836000,-151.0,0.000403,2]
[426554809,1782589836000,-151.0,0.000403,2]
[426554814,1782589836000,-287.49053,0.000403,120]
[426554834,1782589837000,-156.0,0.00041,30]
[426554830,1782589837000,-151.0,0.000403,7]
[426554831,1782589837000,-10000.0,0.000409,120]
[426554829,1782589837000,-151.0,0.000403,120]
[426554827,1782589837000,-151.0,0.000403,120]
[426554824,1782589837000,-1246.089223,0.000403,28]
[426554826,1782589837000,-1246.089222,0.000403,28]
[426554825,1782589837000,-1246.089223,0.000403,28]
[426554823,1782589837000,-1246.089223,0.000403,28]
[426554822,1782589837000,-312.210234,0.000403,120]
[426554833,1782589837000,-580.86736368,0.00040976,2]
[426554828,1782589837000,-151.0,0.000403,120]
[426554835,1782589837000,-151.0,0.00041,30]
[426554821,1782589837000,-312.210232,0.000403,120]
[426554836,1782589837000,-152.0,0.00041,30]
[426554850,1782589837000,-503.49,0.00041095,120]
[426554849,1782589837000,-500.0,0.00041095,120]
[426554848,1782589837000,-500.0,0.00041095,120]
[426554837,1782589837000,-158.0,0.00041,30]
[426554847,1782589837000,-1304.42,0.00041095,120]
[426554845,1782589837000,-500.0,0.00041095,120]
[426554846,1782589837000,-500.0,0.00041095,120]
[426554843,1782589837000,-500.0,0.00041095,120]
[426554841,1782589837000,-549.08,0.00041095,120]
[426554840,1782589837000,-500.0,0.00041095,120]
[426554839,1782589837000,-500.0,0.00041095,120]
[426554838,1782589837000,-151.0,0.00041,30]
[426554844,1782589837000,-500.0,0.00041095,120]
[426554865,1782589838000,-5151.65,0.00041095,120]
[426554862,1782589838000,-500.0,0.00041095,120]
[426554861,1782589838000,-500.0,0.00041095,120]
[426554860,1782589838000,-687.32,0.00041095,120]
[426554858,1782589838000,-500.0,0.00041095,120]
[426554859,1782589838000,-500.0,0.00041095,120]
[426554852,1782589838000,-500.0,0.00041095,120]
[426554856,1782589838000,-500.0,0.00041095,120]
[426554854,1782589838000,-547.44,0.00041095,120]
[426554853,1782589838000,-500.0,0.00041095,60]
[426554851,1782589838000,-500.0,0.00041095,120]
[426554864,1782589838000,-513.6,0.00041095,120]
[426554857,1782589838000,-500.0,0.00041095,120]
[426554863,1782589838000,-1114.41,0.00041095,120]
[426554855,1782589838000,-631.86,0.00041095,120]
[426554867,1782589838000,-500.0,0.00041095,120]
[426554866,1782589838000,-586.73,0.00041095,120]
[426554902,1782589838000,-500.0,0.00041095,30]
[426554894,1782589838000,-1006.92,0.00041095,120]
[426554891,1782589838000,-1264.2,0.00041095,120]
[426554887,1782589838000,-500.0,0.00041095,120]
[426554883,1782589838000,-518.79226925,0.00041095,120]
[426554879,1782589838000,-500.0,0.00041095,2]
[426554898,1782589838000,-500.0,0.00041095,120]
[426554873,1782589838000,-158.97591014,0.00041095,120]
[426554872,1782589838000,-500.0,0.00041095,120]
[426554870,1782589838000,-796.27,0.00041095,120]
[426554871,1782589838000,-500.0,0.00041095,120]
[426554868,1782589838000,-652.63,0.00041095,120]
[426554869,1782589838000,-1653.89,0.00041095,120]
[426554875,1782589838000,-500.0,0.00041095,120]
[426554956,1782589839000,-500.0,0.00041095,120]
[426554948,1782589839000,-555.77,0.00041095,120]
[426554954,1782589839000,-500.0,0.00041095,120]
[426554943,1782589839000,-515.42,0.00041095,14]
[426554923,1782589839000,-562.21,0.00041095,120]
[426554931,1782589839000,-822.49,0.00041095,120]
[426554914,1782589839000,-500.0,0.00041095,120]
[426554910,1782589839000,-500.0,0.00041095,120]
[426554906,1782589839000,-500.0,0.00041095,120]
[426554957,1782589839000,-500.0,0.00041095,120]
[426554938,1782589839000,-500.0,0.00041095,120]
[426554959,1782589839000,-1231.56,0.00041095,120]
[426554961,1782589839000,-597.21,0.00041095,120]
[426554960,1782589839000,-1593.94,0.00041095,120]
[426554976,1782589839000,-4786.87,0.00041095,120]
[426554975,1782589839000,-501.86336987,0.00041095,120]
[426554958,1782589839000,-500.0,0.00041095,120]
[426554973,1782589839000,-500.0,0.00041095,120]
[426554971,1782589839000,-888.82,0.00041095,120]
[426554974,1782589839000,-3148.51,0.00041095,120]
[426554966,1782589839000,-500.0,0.00041095,120]
[426554964,1782589839000,-500.0,0.00041095,120]
[426554965,1782589839000,-500.0,0.00041095,120]
[426554962,1782589839000,-556.58,0.00041095,120]
[426554963,1782589839000,-500.0,0.00041095,120]
[426554967,1782589839000,-951.99,0.00041095,120]
[426555043,1782589840000,-500.0,0.00041095,120]
[426555030,1782589840000,-500.0,0.00041095,120]
[426555026,1782589840000,-500.0,0.00041095,120]
[426555034,1782589840000,-500.0,0.00041095,120]
[426555022,1782589840000,-1467.57,0.00041095,120]
[426555017,1782589840000,-911.64,0.00041095,120]
[426555013,1782589840000,-2946.47,0.00041095,90]
[426555109,1782589840000,-500.0,0.00041095,120]
[426554999,1782589840000,-2813.05,0.00041095,120]
[426555004,1782589840000,-1000.0,0.00041095,2]
[426554995,1782589840000,-500.0,0.00041095,120]
[426554985,1782589840000,-1328.33,0.00041095,120]
[426554990,1782589840000,-500.0,0.00041095,120]
[426554981,1782589840000,-967.05,0.00041095,120]
[426555047,1782589840000,-1209.23,0.00041095,120]
[426555009,1782589840000,-1339.26,0.00041095,120]
[426555039,1782589840000,-2479.6,0.00041095,120]
[426555121,1782589840000,-662.64,0.00041095,120]
[426555064,1782589840000,-677.92,0.00041095,2]
[426555051,1782589840000,-6051.31,0.00041095,120]
[426555117,1782589840000,-1007.52,0.00041095,120]
[426555104,1782589840000,-1215.46,0.00041095,2]
[426555100,1782589840000,-952.22,0.00041095,120]
[426555096,1782589840000,-500.0,0.00041095,120]
[426555093,1782589840000,-917.99,0.00041095,120]
[426555089,1782589840000,-639.43,0.00041095,120]
[426555113,1782589840000,-500.0,0.00041095,120]
[426555081,1782589840000,-500.0,0.00041095,120]
[426555077,1782589840000,-500.0,0.00041095,120]
[426555073,1782589840000,-1098.74,0.00041095,120]
[426555060,1782589840000,-2301.86,0.00041095,120]
[426555056,1782589840000,-1321.07,0.00041095,120]
[426555068,1782589840000,-2242.39,0.00041095,120]
[426555085,1782589840000,-596.02602273,0.00041095,120]
[426555173,1782589841000,-500.0,0.00041095,120]
[426555192,1782589841000,-694.61,0.00041095,120]
[426555188,1782589841000,-2276.19,0.00041095,90]
[426555180,1782589841000,-871.69,0.00041095,120]
[426555169,1782589841000,-3017.06,0.00041095,120]
[426555177,1782589841000,-1943.03,0.00041095,120]
[426555164,1782589841000,-1244.62,0.00041095,120]
[426555148,1782589841000,-1543.76,0.00041095,120]
[426555125,1782589841000,-500.0,0.00041095,120]
[426555157,1782589841000,-904.18,0.00041095,120]
[426555152,1782589841000,-500.0,0.00041095,120]
[426555139,1782589841000,-506.20905597,0.00041095,30]
[426555144,1782589841000,-500.0,0.00041095,120]
[426555134,1782589841000,-500.0,0.00041095,120]
[426555130,1782589841000,-1479.45,0.00041095,120]
[426555203,1782589841000,-827.66,0.00041095,2]
[426555161,1782589841000,-500.0,0.00041095,120]
[426555196,1782589841000,-831.5,0.00041095,120]
[426555220,1782589841000,-751.90125,0.00041284,120]
[426555263,1782589841000,-702.349669,0.00042222,120]
[426555280,1782589841000,-549.08,0.00042465,120]
[426555276,1782589841000,-500.0,0.00042465,120]
[426555199,1782589841000,-500.0,0.00041095,120]
[426555258,1782589841000,-296.390951,0.00042034,120]
[426555271,1782589841000,-500.0,0.00042465,120]
[426555267,1782589841000,-592.691267,0.00042409,120]
[426555245,1782589841000,-152.0,0.00042,30]
[426555249,1782589841000,-158.0,0.00042,30]
[426555254,1782589841000,-151.0,0.00042,30]
[426555231,1782589841000,-638.168284,0.00041847,120]
[426555229,1782589841000,-703.132512,0.00041659,120]
[426555236,1782589841000,-156.0,0.00042,30]
[426555224,1782589841000,-807.603779,0.00041471,120]
[426555216,1782589841000,-705.28179,0.00041096,120]
[426555207,1782589841000,-500.0,0.00041095,120]
[426555212,1782589841000,-168.0,0.00041096,2]
[426555241,1782589841000,-151.0,0.00042,30]
[426555314,1782589842000,-503.49,0.00042465,120]
[426555331,1782589842000,-547.44,0.00042465,120]
[426555321,1782589842000,-500.0,0.00042465,120]
[426555309,1782589842000,-500.0,0.00042465,120]
[426555317,1782589842000,-500.0,0.00042465,120]
[426555325,1782589842000,-500.0,0.00042465,60]
[426555293,1782589842000,-500.0,0.00042465,120]
[426555301,1782589842000,-1304.42,0.00042465,120]
[426555305,1782589842000,-500.0,0.00042465,120]
[426555289,1782589842000,-500.0,0.00042465,120]
[426555285,1782589842000,-170.83594605,0.00042465,120]
[426555297,1782589842000,-500.0,0.00042465,120]
[426555340,1782589842000,-500.0,0.00042465,120]
[426555336,1782589842000,-631.86,0.00042465,120]
[426555351,1782589842000,-500.0,0.00042465,120]
[426555345,1782589842000,-500.0,0.00042465,120]
[426555391,1782589842000,-652.63,0.00042465,120]
[426555400,1782589842000,-796.27,0.00042465,120]
[426555386,1782589842000,-500.0,0.00042465,120]
[426555379,1782589842000,-513.6,0.00042465,120]
[426555382,1782589842000,-586.73,0.00042465,120]
[426555395,1782589842000,-1653.89,0.00042465,120]
[426555378,1782589842000,-1114.41,0.00042465,120]
[426555377,1782589842000,-500.0,0.00042465,120]
[426555373,1782589842000,-500.0,0.00042465,120]
[426555357,1782589842000,-500.0,0.00042465,120]
[426555361,1782589842000,-687.32,0.00042465,120]
[426555404,1782589842000,-500.0,0.00042465,120]
[426555380,1782589842000,-5151.65,0.00042465,120]
[426555455,1782589843000,-500.0,0.00042465,120]
[426555458,1782589843000,-531.29682169,0.00042465,120]
[426555459,1782589843000,-515.42,0.00042465,14]
[426555460,1782589843000,-555.77,0.00042465,120]
[426555461,1782589843000,-500.0,0.00042465,120]
[426555457,1782589843000,-822.49,0.00042465,120]
[426555456,1782589843000,-562.21,0.00042465,120]
[426555452,1782589843000,-401.5054228,0.00042465,30]
[426555442,1782589843000,-500.0,0.00042465,2]
[426555454,1782589843000,-500.0,0.00042465,120]
[426555453,1782589843000,-500.0,0.00042465,120]
[426555450,1782589843000,-1006.92,0.00042465,120]
[426555445,1782589843000,-500.0,0.00042465,120]
[426555448,1782589843000,-1264.2,0.00042465,120]
[426555434,1782589843000,-500.0,0.00042465,120]
[426555438,1782589843000,-500.0,0.00042465,120]
[426555451,1782589843000,-500.0,0.00042465,120]
[426555462,1782589843000,-500.0,0.00042465,120]
[426555465,1782589843000,-1231.56,0.00042465,120]
[426555464,1782589843000,-500.0,0.00042465,120]
[426555463,1782589843000,-545.23045845,0.00042465,120]
[426555478,1782589843000,-967.05,0.00042465,120]
[426555480,1782589843000,-500.0,0.00042465,120]
[426555481,1782589843000,-500.0,0.00042465,120]
[426555479,1782589843000,-1328.33,0.00042465,120]
[426555477,1782589843000,-4786.87,0.00042465,120]
[426555474,1782589843000,-888.82,0.00042465,120]
[426555476,1782589843000,-3148.51,0.00042465,120]
[426555482,1782589843000,-2813.05,0.00042465,120]
[426555473,1782589843000,-951.99,0.00042465,120]
[426555472,1782589843000,-173.19844385,0.00042465,120]
[426555471,1782589843000,-500.0,0.00042465,120]
[426555470,1782589843000,-500.0,0.00042465,120]
[426555466,1782589843000,-1593.94,0.00042465,120]
[426555468,1782589843000,-556.58,0.00042465,120]
[426555469,1782589843000,-500.0,0.00042465,120]
[426555467,1782589843000,-597.21,0.00042465,120]
[426555475,1782589843000,-500.0,0.00042465,120]
[426555498,1782589844000,-677.92,0.00042465,2]
[426555497,1782589844000,-2301.86,0.00042465,120]
[426555493,1782589844000,-1209.23,0.00042465,120]
[426555496,1782589844000,-1321.07,0.00042465,120]
[426555492,1782589844000,-500.0,0.00042465,120]
[426555494,1782589844000,-6051.31,0.00042465,120]
[426555491,1782589844000,-2479.6,0.00042465,120]
[426555486,1782589844000,-911.64,0.00042465,120]
[426555489,1782589844000,-500.0,0.00042465,120]
[426555487,1782589844000,-1467.57,0.00042465,120]
[426555485,1782589844000,-2946.47,0.00042465,90]
[426555488,1782589844000,-500.0,0.00042465,120]
[426555483,1782589844000,-1000.0,0.00042465,2]
[426555484,1782589844000,-1339.26,0.00042465,120]
[426555500,1782589844000,-1098.74,0.00042465,120]
[426555490,1782589844000,-500.0,0.00042465,120]
[426555499,1782589844000,-2242.39,0.00042465,120]
[426555514,1782589844000,-500.0,0.00042465,120]
[426555503,1782589844000,-639.43,0.00042465,120]
[426555517,1782589844000,-500.0,0.00042465,120]
[426555518,1782589844000,-904.18,0.00042465,120]
[426555516,1782589844000,-1543.76,0.00042465,120]
[426555519,1782589844000,-500.0,0.00042465,120]
[426555515,1782589844000,-500.0,0.00042465,120]
[426555513,1782589844000,-1479.45,0.00042465,120]
[426555512,1782589844000,-532.3591315,0.00042465,120]
[426555509,1782589844000,-500.0,0.00042465,120]
[426555501,1782589844000,-500.0,0.00042465,120]
[426555511,1782589844000,-662.64,0.00042465,120]
[426555506,1782589844000,-952.22,0.00042465,120]
[426555505,1782589844000,-500.0,0.00042465,120]
[426555508,1782589844000,-500.0,0.00042465,120]
[426555507,1782589844000,-1215.46,0.00042465,2]
[426555504,1782589844000,-917.99,0.00042465,120]
[426555502,1782589844000,-500.0,0.00042465,120]
[426555510,1782589844000,-1007.52,0.00042465,120]
[426555534,1782589845000,-704.8667,0.00042636,4]
[426555532,1782589845000,-2095.5537376,0.0004254,2]
[426555531,1782589845000,-2885.92439485,0.0004254,2]
[426555533,1782589845000,-514.001554,0.00042597,120]
[426555530,1782589845000,-500.0,0.00042465,120]
[426555528,1782589845000,-500.0,0.00042465,120]
[426555529,1782589845000,-827.66,0.00042465,2]
[426555525,1782589845000,-2276.19,0.00042465,90]
[426555524,1782589845000,-871.69,0.00042465,120]
[426555526,1782589845000,-694.61,0.00042465,120]
[426555523,1782589845000,-1943.03,0.00042465,120]
[426555520,1782589845000,-1244.62,0.00042465,120]
[426555522,1782589845000,-3017.06,0.00042465,120]
[426555521,1782589845000,-500.0,0.00042465,120]
[426555535,1782589845000,-487.322242,0.00042785,120]
[426555527,1782589845000,-831.5,0.00042465,120]
[426555536,1782589845000,-156.0,0.00043,30]
[426555538,1782589845000,-154.65635871,0.00043,30]
[426555559,1782589845000,-500.0,0.00043835,120]
[426555540,1782589845000,-151.0,0.00043,30]
[426555557,1782589845000,-500.0,0.00043835,120]
[426555558,1782589845000,-1304.42,0.00043835,120]
[426555555,1782589845000,-500.0,0.00043835,120]
[426555552,1782589845000,-500.0,0.00043835,120]
[426555549,1782589845000,-500.0,0.00043835,120]
[426555550,1782589845000,-500.0,0.00043835,120]
[426555547,1782589845000,-395.814976,0.00043535,120]
[426555551,1782589845000,-549.08,0.00043835,120]
[426555548,1782589845000,-376.395405,0.00043723,120]
[426555546,1782589845000,-416.55058,0.00043348,120]
[426555537,1782589845000,-151.0,0.00043,30]
[426555543,1782589845000,-488.161905,0.0004316,120]
[426555542,1782589845000,-158.872519,0.00043053,120]
[426555539,1782589845000,-158.0,0.00043,30]
[426555544,1782589845000,-186.0,0.00043194,2]
[426555545,1782589845000,-446.0,0.00043194,2]
[426555541,1782589845000,-300.0,0.00043026,92]
[426555569,1782589846000,-500.0,0.00043835,120]
[426555576,1782589846000,-1114.41,0.00043835,120]
[426555577,1782589846000,-513.6,0.00043835,120]
[426555572,1782589846000,-500.0,0.00043835,120]
[426555574,1782589846000,-500.0,0.00043835,120]
[426555575,1782589846000,-500.0,0.00043835,120]
[426555573,1782589846000,-687.32,0.00043835,120]
[426555571,1782589846000,-500.0,0.00043835,120]
[426555578,1782589846000,-5151.65,0.00043835,120]
[426555568,1782589846000,-631.86,0.00043835,120]
[426555567,1782589846000,-547.44,0.00043835,120]
[426555565,1782589846000,-500.0,0.00043835,120]
[426555566,1782589846000,-540.4737706,0.00043835,60]
[426555564,1782589846000,-511.10279834,0.00043835,120]
[426555561,1782589846000,-503.49,0.00043835,120]
[426555560,1782589846000,-500.0,0.00043835,120]
[426555570,1782589846000,-500.0,0.00043835,120]
[426555579,1782589846000,-586.73,0.00043835,120]
[426555601,1782589846000,-555.77,0.00043835,120]
[426555583,1782589846000,-652.63,0.00043835,120]
[426555580,1782589846000,-500.0,0.00043835,120]
[426555600,1782589846000,-515.42,0.00043835,14]
[426555599,1782589846000,-822.49,0.00043835,120]
[426555598,1782589846000,-562.21,0.00043835,120]
[426555597,1782589846000,-500.0,0.00043835,120]
[426555594,1782589846000,-500.0,0.00043835,120]
[426555595,1782589846000,-608.00047262,0.00043835,120]
[426555592,1782589846000,-1264.2,0.00043835,120]
[426555596,1782589846000,-500.0,0.00043835,120]
[426555590,1782589846000,-500.0,0.00043835,2]
[426555591,1782589846000,-500.0,0.00043835,120]
[426555588,1782589846000,-500.0,0.00043835,120]
[426555589,1782589846000,-500.0,0.00043835,120]
[426555587,1782589846000,-500.0,0.00043835,120]
[426555586,1782589846000,-796.27,0.00043835,120]
[426555585,1782589846000,-1653.89,0.00043835,120]
[426555593,1782589846000,-1006.92,0.00043835,120]
[426555612,1782589847000,-951.99,0.00043835,120]
[426555617,1782589847000,-967.05,0.00043835,120]
[426555615,1782589847000,-3148.51,0.00043835,120]
[426555613,1782589847000,-888.82,0.00043835,120]
[426555614,1782589847000,-500.0,0.00043835,120]
[426555611,1782589847000,-500.0,0.00043835,120]
[426555609,1782589847000,-500.0,0.00043835,120]
[426555616,1782589847000,-4786.87,0.00043835,120]
[426555608,1782589847000,-556.58,0.00043835,120]
[426555606,1782589847000,-1593.94,0.00043835,120]
[426555607,1782589847000,-597.21,0.00043835,120]
[426555605,1782589847000,-1231.56,0.00043835,120]
[426555604,1782589847000,-500.0,0.00043835,120]
[426555602,1782589847000,-500.0,0.00043835,120]
[426555603,1782589847000,-500.0,0.00043835,120]
[426555610,1782589847000,-500.0,0.00043835,120]
[426555618,1782589847000,-1328.33,0.00043835,120]
[426555619,1782589847000,-500.0,0.00043835,120]
[426555621,1782589847000,-2813.05,0.00043835,120]
[426555634,1782589847000,-1321.07,0.00043835,120]
[426555637,1782589847000,-2242.39,0.00043835,120]
[426555635,1782589847000,-2301.86,0.00043835,120]
[426555633,1782589847000,-6051.31,0.00043835,120]
[426555631,1782589847000,-500.0,0.00043835,120]
[426555632,1782589847000,-1209.23,0.00043835,120]
[426555630,1782589847000,-2479.6,0.00043835,120]
[426555629,1782589847000,-500.0,0.00043835,120]
[426555636,1782589847000,-677.92,0.00043835,2]
[426555628,1782589847000,-500.0,0.00043835,120]
[426555625,1782589847000,-911.64,0.00043835,120]
[426555626,1782589847000,-1467.57,0.00043835,120]
[426555623,1782589847000,-1339.26,0.00043835,120]
[426555624,1782589847000,-2946.47,0.00043835,90]
[426555622,1782589847000,-1000.0,0.00043835,2]
[426555620,1782589847000,-500.0,0.00043835,120]
[426555627,1782589847000,-500.0,0.00043835,120]
[426555653,1782589848000,-1543.76,0.00043835,120]
[426555651,1782589848000,-500.0,0.00043835,120]
[426555649,1782589848000,-662.64,0.00043835,120]
[426555650,1782589848000,-1479.45,0.00043835,120]
[426555648,1782589848000,-1007.52,0.00043835,120]
[426555647,1782589848000,-500.0,0.00043835,120]
[426555646,1782589848000,-500.0,0.00043835,120]
[426555642,1782589848000,-917.99,0.00043835,120]
[426555644,1782589848000,-952.22,0.00043835,120]
[426555643,1782589848000,-500.0,0.00043835,120]
[426555641,1782589848000,-639.43,0.00043835,120]
[426555640,1782589848000,-500.0,0.00043835,120]
[426555638,1782589848000,-1098.74,0.00043835,120]
[426555639,1782589848000,-500.0,0.00043835,120]
[426555652,1782589848000,-500.0,0.00043835,120]
[426555645,1782589848000,-1215.46,0.00043835,2]
[426555654,1782589848000,-500.0,0.00043835,120]
[426555655,1782589848000,-904.18,0.00043835,120]
[426555657,1782589848000,-1244.62,0.00043835,120]
[426555670,1782589848000,-556.46,0.00043993,120]
[426555671,1782589848000,-300.0,0.00044,120]
[426555669,1782589848000,-358.228205,0.00043911,120]
[426555668,1782589848000,-2572.99204317,0.00043894,2]
[426555667,1782589848000,-500.0,0.00043835,120]
[426555666,1782589848000,-827.66,0.00043835,2]
[426555665,1782589848000,-500.0,0.00043835,120]
[426555672,1782589848000,-156.0,0.00044,30]
[426555664,1782589848000,-831.5,0.00043835,120]
[426555659,1782589848000,-500.0,0.00043835,120]
[426555662,1782589848000,-2276.19,0.00043835,90]
[426555661,1782589848000,-871.69,0.00043835,120]
[426555660,1782589848000,-1943.03,0.00043835,120]
[426555656,1782589848000,-500.0,0.00043835,120]
[426555658,1782589848000,-3017.06,0.00043835,120]
[426555663,1782589848000,-694.61,0.00043835,120]
[426555687,1782589849000,-500.0,0.00045205,120]
[426555686,1782589849000,-500.0,0.00045205,120]
[426555684,1782589849000,-27447.0,0.00045,30]
[426555685,1782589849000,-272.21829,0.00045037,120]
[426555683,1782589849000,-4260.104751,0.00045,120]
[426555681,1782589849000,-3999.999999,0.00045,30]
[426555682,1782589849000,-300.0,0.00045,120]
[426555678,1782589849000,-453.087565,0.00044661,120]
[426555680,1782589849000,-1998.68336954,0.00045,120]
[426555679,1782589849000,-426.605703,0.00044849,120]
[426555676,1782589849000,-325.406668,0.00044286,120]
[426555673,1782589849000,-164.5786694,0.00044,30]
[426555675,1782589849000,-341.2518,0.00044098,120]
[426555674,1782589849000,-152.74015356,0.00044,30]
[426555689,1782589849000,-500.0,0.00045205,120]
[426555677,1782589849000,-310.635303,0.00044474,120]
[426555690,1782589849000,-500.0,0.00045205,120]
[426555708,1782589849000,-5151.65,0.00045205,120]
[426555688,1782589849000,-549.08,0.00045205,120]
[426555691,1782589849000,-500.0,0.00045205,120]
[426555705,1782589849000,-500.0,0.00045205,120]
[426555706,1782589849000,-1114.41,0.00045205,120]
[426555707,1782589849000,-513.6,0.00045205,120]
[426555704,1782589849000,-500.0,0.00045205,120]
[426555702,1782589849000,-500.0,0.00045205,120]
[426555700,1782589849000,-500.0,0.00045205,120]
[426555701,1782589849000,-500.0,0.00045205,120]
[426555703,1782589849000,-687.32,0.00045205,120]
[426555698,1782589849000,-631.86,0.00045205,120]
[426555696,1782589849000,-500.0,0.00045205,120]
[426555697,1782589849000,-547.44,0.00045205,120]
[426555695,1782589849000,-503.49,0.00045205,120]
[426555694,1782589849000,-560.18675241,0.00045205,120]
[426555692,1782589849000,-1304.42,0.00045205,120]
[426555693,1782589849000,-500.0,0.00045205,120]
[426555699,1782589849000,-500.0,0.00045205,120]
[426555717,1782589850000,-500.0,0.00045205,2]
[426555724,1782589850000,-562.21,0.00045205,120]
[426555722,1782589850000,-500.0,0.00045205,120]
[426555723,1782589850000,-500.0,0.00045205,120]
[426555721,1782589850000,-500.0,0.00045205,120]
[426555720,1782589850000,-1006.92,0.00045205,120]
[426555718,1782589850000,-500.0,0.00045205,120]
[426555726,1782589850000,-515.42,0.00045205,14]
[426555719,1782589850000,-1264.2,0.00045205,120]
[426555714,1782589850000,-500.0,0.00045205,120]
[426555713,1782589850000,-796.27,0.00045205,120]
[426555715,1782589850000,-500.0,0.00045205,120]
[426555712,1782589850000,-1653.89,0.00045205,120]
[426555711,1782589850000,-652.63,0.00045205,120]
[426555709,1782589850000,-586.73,0.00045205,120]
[426555716,1782589850000,-500.0,0.00045205,120]
[426555727,1782589850000,-555.77,0.00045205,120]
[426555710,1782589850000,-500.0,0.00045205,120]
[426555728,1782589850000,-500.0,0.00045205,120]
[426555744,1782589850000,-1328.33,0.00045205,120]
[426555745,1782589850000,-500.0,0.00045205,120]
[426555743,1782589850000,-967.05,0.00045205,120]
[426555740,1782589850000,-500.0,0.00045205,120]
[426555741,1782589850000,-3148.51,0.00045205,120]
[426555742,1782589850000,-4786.87,0.00045205,120]
[426555739,1782589850000,-888.82,0.00045205,120]
[426555738,1782589850000,-951.99,0.00045205,120]
[426555725,1782589850000,-822.49,0.00045205,120]
[426555737,1782589850000,-500.0,0.00045205,120]
[426555736,1782589850000,-500.0,0.00045205,120]
[426555733,1782589850000,-597.21,0.00045205,120]
[426555734,1782589850000,-556.58,0.00045205,120]
[426555732,1782589850000,-1593.94,0.00045205,120]
[426555731,1782589850000,-1231.56,0.00045205,120]
[426555730,1782589850000,-500.0,0.00045205,120]
[426555729,1782589850000,-500.0,0.00045205,120]
[426555735,1782589850000,-500.0,0.00045205,120]
[426555758,1782589851000,-1209.23,0.00045205,120]
[426555759,1782589851000,-6051.31,0.00045205,120]
[426555757,1782589851000,-500.0,0.00045205,120]
[426555755,1782589851000,-500.0,0.00045205,120]
[426555754,1782589851000,-500.0,0.00045205,120]
[426555753,1782589851000,-500.0,0.00045205,120]
[426555751,1782589851000,-911.64,0.00045205,120]
[426555750,1782589851000,-2946.47,0.00045205,90]